Workbook

Sheet Лист1
A2: Школа | C2: МАОУ СОШ п Цементный | F2: Утвердил: | G2: должность | H2: Директор
A3: Типовое примерное меню приготавливаемых блюд | G3: фамилия | H3: Арапова ОВ
A4: Возрастная категория | E4: 7-11 лет | G4: дата | H4: 12 | I4: 1 | J4: 2026
H5: день | I5: месяц | J5: год
A6: Неделя | B6: День недели | C6: Прием пищи | D6: Раздел меню | E6: Блюда | F6: Вес блюда, г | G6: Белки | H6: Жиры | I6: Углеводы | J6: Калорийность | K6: № рецептуры | L6: Цена
A7: 1 | B7: 1 | C7: Завтрак | D7: закуска | E7: Кукуруза консервированная | F7: 20 | G7: 2 | H7: 1 | I7: 12 | J7: 65 | K7: 13 026
D8: выпечка
D9: 2 блюдо | E9: Котлета из свинины | F9: 100 | G9: 13 | H9: 26 | I9: 14 | J9: 335 | K9: 13 062,01
D10: гарнир | E10: Каша гречневая | F10: 150 | G10: 5 | H10: 5 | I10: 21 | J10: 150 | K10: 13 165,01
D11: гор.напиток | E11: Напиток витаминизированый | F11: 200 | G11: 0 | H11: 0 | I11: 5 | J11: 20 | K11: 13 018
D12: хлеб
D13: хлеб | E13: Хлеб пшеничный витаминизированный | F13: 20 | G13: 2 | I13: 10 | J13: 47 | K13: 13 016
D14: итого | F14: =F7+F8+F9+F10+F11+F12+F13 -> 490 | G14: =G7+G8+G9+G10+G11+G12+G13 -> 22 | H14: =H7+H8+H9+H10+H11+H12+H13 -> 32 | I14: =I7+I8+I9+I10+I11+I12+I13 -> 62 | J14: =J7+J8+J9+J10+J11+J12+J13 -> 617 | L14: 105
A15: 1 | B15: 1 | C15: Обед | D15: закуска
D16: выпечка
D17: 1 блюдо | E17: Суп картофельный с бобовыми с говядиной | F17: 260 | G17: 9 | H17: 9 | I17: 19 | J17: 186 | K17: 13 220
D18: 2 блюдо | E18: Плов из свинины | F18: 260 | G18: 23 | H18: 52 | I18: 48 | J18: 751 | K18: 13 066,02
D19: гарнир
D20: напиток | E20: Компот из смеси сухофруктов | F20: 200 | I20: 20 | J20: 80 | K20: 13 015
D21: хлеб | E21: Хлеб ржаной | F21: 30 | G21: 2 | I21: 10 | J21: 52 | K21: 13 017
D22: хлеб | E22: Хлеб пшеничный витаминизированный | F22: 30 | G22: 2 | I22: 14 | J22: 71 | K22: 13 016
D23: итого | F23: =F15+F16+F17+F18+F19+F20+F21+F22 -> 780 | G23: =G15+G16+G17+G18+G19+G20+G21+G22 -> 36 | H23: =H15+H16+H17+H18+H19+H20+H21+H22 -> 61 | I23: =I15+I16+I17+I18+I19+I20+I21+I22 -> 111 | J23: =J15+J16+J17+J18+J19+J20+J21+J22 -> 1140 | L23: 139
A24: 1 | B24: 1 | C24: Итого за день: | F24: =F14+F23 -> 1270 | G24: =G14+G23 -> 58 | H24: =H14+H23 -> 93 | I24: =I14+I23 -> 173 | J24: =J14+J23 -> 1757 | L24: =L14+L23 -> 244
A25: 1 | B25: 2 | C25: Завтрак | D25: закуска | E25: Кисломолочный продукт "Йогурт" | F25: 125 | G25: 6 | H25: 4 | I25: 4 | J25: 85
D26: выпечка | E26: Ватрушка "Лакомка" | F26: 75 | G26: 9 | H26: 15 | I26: 32 | J26: 294 | K26: 1935-12-11
D27: 2 блюдо
D28: гарнир | E28: Каша молочная рисовая с маслом | F28: 205 | G28: 3 | H28: 7 | I28: 11 | J28: 120 | K28: 13251
D29: гор.напиток | E29: Кофейный напиток | F29: 200 | G29: 2 | H29: 2 | I29: 24 | J29: 122 | K29: 13 043
D30: хлеб | E30: Хлеб ржаной | F30: 20 | G30: 1 | I30: 7 | J30: 35 | K30: 13 017
D31: хлеб | E31: Хлеб пшеничный витаминизированный | F31: 20 | G31: 2 | I31: 10 | J31: 47 | K31: 13 016
D32: итого | F32: =F25+F26+F27+F28+F29+F30+F31 -> 645 | G32: =G25+G26+G27+G28+G29+G30+G31 -> 23 | H32: =H25+H26+H27+H28+H29+H30+H31 -> 28 | I32: =I25+I26+I27+I28+I29+I30+I31 -> 88 | J32: =J25+J26+J27+J28+J29+J30+J31 -> 703 | L32: 105
A33: 1 | B33: 2 | C33: Обед | D33: закуска
D34: выпечка
D35: 1 блюдо | E35: Суп картофельный с рыбой | F35: 265 | G35: 7 | H35: 4 | I35: 20 | J35: 148 | K35: 13 218
D36: 2 блюдо | E36: Поджарка из свинины | F36: 100 | G36: 16 | H36: 49 | I36: 5 | J36: 520 | K36: 13 058,01
D37: гарнир | E37: Макароны отварные | F37: 150 | G37: 6 | H37: 5 | I37: 36 | J37: 210 | K37: 13 158
D38: напиток | E38: Компот из свежих яблок | F38: 200 | I38: 26 | J38: 108 | K38: 13 237,02
D39: хлеб | E39: Хлеб ржаной | F39: 30 | G39: 2 | I39: 10 | J39: 52 | K39: 13 017
D40: хлеб | E40: Хлеб пшеничный витаминизированный | F40: 30 | G40: 2 | I40: 14 | J40: 71 | K40: 13 016
D41: итого | F41: =F33+F34+F35+F36+F37+F38+F39+F40 -> 775 | G41: =G33+G34+G35+G36+G37+G38+G39+G40 -> 33 | H41: =H33+H34+H35+H36+H37+H38+H39+H40 -> 58 | I41: =I33+I34+I35+I36+I37+I38+I39+I40 -> 111 | J41: =J33+J34+J35+J36+J37+J38+J39+J40 -> 1109 | L41: 139
A42: 1 | B42: 2 | C42: Итого за день: | F42: =F32+F41 -> 1420 | G42: =G32+G41 -> 56 | H42: =H32+H41 -> 86 | I42: =I32+I41 -> 199 | J42: =J32+J41 -> 1812 | L42: =L32+L41 -> 244
A43: 1 | B43: 3 | C43: Завтрак | D43: закуска
D44: выпечка
D45: 2 блюдо | E45: Тефтели рыбные | F45: 100 | G45: 15 | H45: 11 | I45: 13 | J45: 213 | K45: 13091
D46: гарнир | E46: Картофельное пюре | F46: 150 | G46: 3 | H46: 6 | I46: 22 | J46: 152 | K46: 13170
D47: гор.напиток | E47: Чай с сахаром | F47: 215 | I47: 15 | J47: 63 | K47: 13022
D48: хлеб | E48: Хлеб ржаной | F48: 20 | G48: 1 | I48: 7 | J48: 35 | K48: 13 017
D49: хлеб | E49: Хлеб пшеничный витаминизированный | F49: 20 | G49: 2 | I49: 10 | J49: 47 | K49: 13 016
D50: итого | F50: =F43+F44+F45+F46+F47+F48+F49 -> 505 | G50: =G43+G44+G45+G46+G47+G48+G49 -> 21 | H50: =H43+H44+H45+H46+H47+H48+H49 -> 17 | I50: =I43+I44+I45+I46+I47+I48+I49 -> 67 | J50: =J43+J44+J45+J46+J47+J48+J49 -> 510 | L50: 105
A51: 1 | B51: 3 | C51: Обед | D51: закуска | E51: Яйцо вареное | F51: 40 | G51: 5 | H51: 5 | J51: 63 | K51: 13 040.01
D52: выпечка | E52: Сдоба аппетитная | F52: 100 | G52: 13 | H52: 13 | I52: 37 | J52: 323 | K52: 13141
D53: 1 блюдо | E53: Борщ с говядиной и сметаной | F53: 280 | G53: 6 | H53: 12 | I53: 15 | J53: 196 | K53: 13212
D54: 2 блюдо
D55: гарнир | E55: Каша молочная пшенная с маслом | F55: 205 | G55: 8 | H55: 9 | I55: 37 | J55: 254 | K55: 13152
D56: напиток | E56: Напиток из плодов шиповника | F56: 200 | I56: 24 | J56: 102 | K56: 13047
D57: хлеб | E57: Хлеб ржаной | F57: 30 | G57: 2 | I57: 10 | J57: 52 | K57: 13 017
D58: хлеб | E58: Хлеб пшеничный витаминизированный | F58: 30 | G58: 2 | I58: 14 | J58: 71 | K58: 13 016
D59: итого | F59: =F51+F52+F53+F54+F55+F56+F57+F58 -> 885 | G59: =G51+G52+G53+G54+G55+G56+G57+G58 -> 36 | H59: =H51+H52+H53+H54+H55+H56+H57+H58 -> 39 | I59: =I51+I52+I53+I54+I55+I56+I57+I58 -> 137 | J59: =J51+J52+J53+J54+J55+J56+J57+J58 -> 1061 | L59: 139
A60: 1 | B60: 3 | C60: Итого за день: | F60: =F50+F59 -> 1390 | G60: =G50+G59 -> 57 | H60: =H50+H59 -> 56 | I60: =I50+I59 -> 204 | J60: =J50+J59 -> 1571 | L60: =L50+L59 -> 244
A61: 1 | B61: 4 | C61: Завтрак | D61: закуска | E61: Зеленый горошек консервированный | F61: 20 | G61: 1 | I61: 1 | J61: 8 | K61: 1
D62: выпечка
D63: 2 блюдо | E63: Кура отварная | F63: 100 | G63: 26 | H63: 26 | J63: 343 | K63: 13 41
D64: гарнир | E64: Макароны отварные | F64: 150 | G64: 6 | H64: 5 | I64: 36 | J64: 210 | K64: 13158
D65: гор.напиток | E65: Кисель витаминизированный | F65: 200 | I65: 18 | J65: 72 | K65: 13037
D66: хлеб
D67: хлеб | E67: Хлеб пшеничный витаминизированный | F67: 20 | G67: 2 | I67: 10 | J67: 47 | K67: 13 016
D68: итого | F68: =F61+F62+F63+F64+F65+F66+F67 -> 490 | G68: =G61+G62+G63+G64+G65+G66+G67 -> 35 | H68: =H61+H62+H63+H64+H65+H66+H67 -> 31 | I68: =I61+I62+I63+I64+I65+I66+I67 -> 65 | J68: =J61+J62+J63+J64+J65+J66+J67 -> 680 | L68: 105
A69: 1 | B69: 4 | C69: Обед | D69: закуска
D70: выпечка
D71: 1 блюдо | E71: Суп-пюре картофельный с курой и гренками | F71: 270 | G71: 6 | H71: 6 | I71: 28 | J71: 200 | K71: 13225
D72: 2 блюдо | E72: Кнели из куры | F72: 100 | G72: 17 | H72: 23 | J72: 273 | K72: 13080
D73: гарнир | E73: Каша гречневая | F73: 150 | G73: 5 | H73: 5 | I73: 21 | J73: 150 | K73: 13 165.01
D74: напиток | E74: Компот из плодов кураги | F74: 200 | G74: 1 | I74: 30 | J74: 126 | K74: 13235
D75: хлеб | E75: Хлеб ржаной | F75: 30 | G75: 2 | I75: 10 | J75: 52 | K75: 13 017
D76: хлеб | E76: Хлеб пшеничный витаминизированный | F76: 30 | G76: 2 | I76: 14 | J76: 71 | K76: 13 016
D77: итого | F77: =F69+F70+F71+F72+F73+F74+F75+F76 -> 780 | G77: =G69+G70+G71+G72+G73+G74+G75+G76 -> 33 | H77: =H69+H70+H71+H72+H73+H74+H75+H76 -> 34 | I77: =I69+I70+I71+I72+I73+I74+I75+I76 -> 103 | J77: =J69+J70+J71+J72+J73+J74+J75+J76 -> 872 | L77: 139
A78: 1 | B78: 4 | C78: Итого за день: | F78: =F68+F77 -> 1270 | G78: =G68+G77 -> 68 | H78: =H68+H77 -> 65 | I78: =I68+I77 -> 168 | J78: =J68+J77 -> 1552 | L78: =L68+L77 -> 244
A79: 1 | B79: 5 | C79: Завтрак | D79: закуска
D80: выпечка
D81: 2 блюдо | E81: Плов из свинины | F81: 260 | G81: 23 | H81: 52 | I81: 48 | J81: 751 | K81: 13 066.02
D82: гарнир
D83: гор.напиток | E83: Чай с сахаром и лимоном | F83: 220 | I83: 15 | J83: 65 | K83: 13 029.01
D84: хлеб | E84: Хлеб ржаной | F84: 20 | G84: 1 | I84: 7 | J84: 35 | K84: 13 017
D85: хлеб | E85: Хлеб пшеничный витаминизированный | F85: 20 | G85: 2 | I85: 10 | J85: 47 | K85: 13 016
D86: итого | F86: =F79+F80+F81+F82+F83+F84+F85 -> 520 | G86: =G79+G80+G81+G82+G83+G84+G85 -> 26 | H86: =H79+H80+H81+H82+H83+H84+H85 -> 52 | I86: =I79+I80+I81+I82+I83+I84+I85 -> 80 | J86: =J79+J80+J81+J82+J83+J84+J85 -> 898 | L86: 105
A87: 1 | B87: 5 | C87: Обед | D87: закуска
D88: выпечка
D89: 1 блюдо | E89: Суп из овощей со сметаной | F89: 265 | G89: 2 | H89: 8 | I89: 12 | J89: 131 | K89: 13227
D90: 2 блюдо | E90: Котлета рыбная | F90: 100 | G90: 16 | H90: 13 | I90: 14 | J90: 230 | K90: 13090
D91: гарнир | E91: Картофельное пюре | F91: 150 | G91: 3 | H91: 6 | I91: 22 | J91: 152 | K91: 13170
D92: напиток | E92: Какао с молоком | F92: 200 | G92: 4 | H92: 3 | I92: 25 | J92: 146 | K92: 13030
D93: хлеб | E93: Хлеб ржаной | F93: 30 | G93: 2 | I93: 10 | J93: 52 | K93: 13 017
D94: хлеб | E94: Хлеб пшеничный витаминизированный | F94: 30 | G94: 2 | I94: 14 | J94: 71 | K94: 13 016
D95: итого | F95: =F87+F88+F89+F90+F91+F92+F93+F94 -> 775 | G95: =G87+G88+G89+G90+G91+G92+G93+G94 -> 29 | H95: =H87+H88+H89+H90+H91+H92+H93+H94 -> 30 | I95: =I87+I88+I89+I90+I91+I92+I93+I94 -> 97 | J95: =J87+J88+J89+J90+J91+J92+J93+J94 -> 782 | L95: 139
A96: 1 | B96: 5 | C96: Итого за день: | F96: =F86+F95 -> 1295 | G96: =G86+G95 -> 55 | H96: =H86+H95 -> 82 | I96: =I86+I95 -> 177 | J96: =J86+J95 -> 1680 | L96: =L86+L95 -> 244
A97: 2 | B97: 1 | C97: Завтрак | D97: закуска | E97: Кукуруза консервированная | F97: 15 | G97: 2 | H97: 1 | I97: 9 | J97: 49 | K97: 13026
D98: выпечка
D99: 2 блюдо | E99: Поджарка из свинины | F99: 100 | G99: 16 | H99: 49 | I99: 5 | J99: 520 | K99: 13 058.01
D100: гарнир | E100: Каша гречневая | F100: 150 | G100: 5 | H100: 5 | I100: 21 | J100: 150 | K100: 13 165.01
D101: гор.напиток | E101: Чай с сахаром | F101: 215 | I101: 15 | J101: 63 | K101: 13022
D102: хлеб
D103: хлеб | E103: Хлеб пшеничный | F103: 20 | G103: 2 | I103: 10 | J103: 47 | K103: 13 016
D104: итого | F104: =F97+F98+F99+F100+F101+F102+F103 -> 500 | G104: =G97+G98+G99+G100+G101+G102+G103 -> 25 | H104: =H97+H98+H99+H100+H101+H102+H103 -> 55 | I104: =I97+I98+I99+I100+I101+I102+I103 -> 60 | J104: =J97+J98+J99+J100+J101+J102+J103 -> 829 | L104: 105
A105: 2 | B105: 1 | C105: Обед | D105: закуска | E105: Бутерброд с маслом сливочным | F105: 60 | G105: 3 | H105: 15 | I105: 20 | J105: 226 | K105: 13 185.01
D106: выпечка
D107: 1 блюдо | E107: Щи с говядиной и сметаной | F107: 265 | G107: 3 | H107: 8 | I107: 10 | J107: 134 | K107: 13228
D108: 2 блюдо | E108: Котлета из свинины | F108: 100 | G108: 13 | H108: 26 | I108: 14 | J108: 335 | K108: 13 082.01
D109: гарнир | E109: Макароны отварные | F109: 150 | G109: 6 | H109: 5 | I109: 36 | J109: 210 | K109: 13158
D110: напиток | E110: Компот из смеси сухофруктов | F110: 200 | I110: 20 | J110: 80 | K110: 13015
D111: хлеб | E111: Хлеб ржаной | F111: 30 | G111: 2 | I111: 10 | J111: 52 | K111: 13 017
D112: хлеб
D113: итого | F113: =F105+F106+F107+F108+F109+F110+F111+F112 -> 805 | G113: =G105+G106+G107+G108+G109+G110+G111+G112 -> 27 | H113: =H105+H106+H107+H108+H109+H110+H111+H112 -> 54 | I113: =I105+I106+I107+I108+I109+I110+I111+I112 -> 110 | J113: =J105+J106+J107+J108+J109+J110+J111+J112 -> 1037 | L113: 139
A114: 2 | B114: 1 | C114: Итого за день: | F114: =F104+F113 -> 1305 | G114: =G104+G113 -> 52 | H114: =H104+H113 -> 109 | I114: =I104+I113 -> 170 | J114: =J104+J113 -> 1866 | L114: =L104+L113 -> 244
A115: 2 | B115: 2 | C115: Завтрак | D115: закуска | E115: Кисломолочный продукт "Йогурт" | F115: 125 | G115: 6 | H115: 4 | I115: 4 | J115: 85
D116: выпечка | E116: Ватрушка створогом | F116: 75 | G116: 10 | H116: 4 | I116: 33 | J116: 209 | K116: 1935-12-27
D117: 2 блюдо
D118: гарнир | E118: Каша молочная пшеничная с маслом | F118: 208 | G118: 8 | H118: 11 | I118: 37 | J118: 137 | K118: 99
D119: гор.напиток | E119: Какао с молоком | F119: 200 | G119: 4 | H119: 3 | I119: 25 | J119: 146 | K119: 13030
D120: хлеб | E120: Хлеб ржаной | F120: 20 | G120: 1 | I120: 7 | J120: 35 | K120: 13 017
D121: хлеб | E121: Хлеб пшеничный витаминизированный | F121: 20 | G121: 2 | I121: 10 | J121: 47 | K121: 13 016
D122: итого | F122: =F115+F116+F117+F118+F119+F120+F121 -> 648 | G122: =G115+G116+G117+G118+G119+G120+G121 -> 31 | H122: =H115+H116+H117+H118+H119+H120+H121 -> 22 | I122: =I115+I116+I117+I118+I119+I120+I121 -> 116 | J122: =J115+J116+J117+J118+J119+J120+J121 -> 659 | L122: 105
A123: 2 | B123: 2 | C123: Обед | D123: закуска
D124: выпечка
D125: 1 блюдо | E125: Борщ с говядиной и сметаной | F125: 265 | G125: 3 | H125: 8 | I125: 14 | J125: 151 | K125: 13212
D126: 2 блюдо | E126: Котлета рыбная | F126: 100 | G126: 16 | H126: 13 | I126: 14 | J126: 230 | K126: 13090
D127: гарнир | E127: Картофельное пюре | F127: 150 | G127: 3 | H127: 6 | I127: 22 | J127: 152 | K127: 13170
D128: напиток | E128: Компот из свежих яблок | F128: 200 | I128: 26 | J128: 108 | K128: 13 737.02
D129: хлеб | E129: Хлеб ржаной | F129: 30 | G129: 2 | I129: 10 | J129: 52 | K129: 13 017
D130: хлеб | E130: Хлеб пшеничный витаминизированный | F130: 30 | G130: 2 | I130: 14 | J130: 71 | K130: 13 016
D131: итого | F131: =F123+F124+F125+F126+F127+F128+F129+F130 -> 775 | G131: =G123+G124+G125+G126+G127+G128+G129+G130 -> 26 | H131: =H123+H124+H125+H126+H127+H128+H129+H130 -> 27 | I131: =I123+I124+I125+I126+I127+I128+I129+I130 -> 100 | J131: =J123+J124+J125+J126+J127+J128+J129+J130 -> 764 | L131: 139
A132: 2 | B132: 2 | C132: Итого за день: | F132: =F122+F131 -> 1423 | G132: =G122+G131 -> 57 | H132: =H122+H131 -> 49 | I132: =I122+I131 -> 216 | J132: =J122+J131 -> 1423 | L132: =L122+L131 -> 244
A133: 2 | B133: 3 | C133: Завтрак | D133: закуска
D134: выпечка
D135: 2 блюдо | E135: Плов из свинины | F135: 260 | G135: 23 | H135: 52 | I135: 48 | J135: 751 | K135: 13 066.02
D136: гарнир
D137: гор.напиток | E137: Чай с сахаром и лимоном | F137: 220 | I137: 15 | J137: 65 | K137: 13 029.03
D138: хлеб | E138: Хлеб ржаной | F138: 20 | G138: 1 | I138: 7 | J138: 35 | K138: 13 017
D139: хлеб | E139: Хлеб пшеничный витаминизированный | F139: 20 | G139: 2 | I139: 10 | J139: 47 | K139: 13 016
D140: итого | F140: =F133+F134+F135+F136+F137+F138+F139 -> 520 | G140: =G133+G134+G135+G136+G137+G138+G139 -> 26 | H140: =H133+H134+H135+H136+H137+H138+H139 -> 52 | I140: =I133+I134+I135+I136+I137+I138+I139 -> 80 | J140: =J133+J134+J135+J136+J137+J138+J139 -> 898 | L140: 105
A141: 2 | B141: 3 | C141: Обед | D141: закуска | E141: Кисломолочный продукт "Йогурт" | F141: 125 | G141: 6 | H141: 4 | I141: 4 | J141: 85
D142: выпечка | E142: Ватрушка "Лакомка" | F142: 80 | G142: 9 | H142: 16 | I142: 34 | J142: 314 | K142: 13129
D143: 1 блюдо | E143: Суп-пюре картофельный с говядиной и гренками | F143: 275 | G143: 8 | H143: 8 | I143: 28 | J143: 218 | K143: 13042
D144: 2 блюдо
D145: гарнир | E145: Каша молочная "Дружба" с маслом | F145: 205 | G145: 6 | H145: 8 | I145: 27 | J145: 201 | K145: 13144
D146: напиток | E146: Кисель витаминизированный | F146: 200 | I146: 18 | J146: 72 | K146: 13037
D147: хлеб | E147: Хлеб ржаной | F147: 30 | G147: 2 | I147: 10 | J147: 52 | K147: 13 017
D148: хлеб | E148: Хлеб пшеничный витаминизированный | F148: 30 | G148: 2 | I148: 14 | J148: 71 | K148: 13 016
D149: итого | F149: =F141+F142+F143+F144+F145+F146+F147+F148 -> 945 | G149: =G141+G142+G143+G144+G145+G146+G147+G148 -> 33 | H149: =H141+H142+H143+H144+H145+H146+H147+H148 -> 36 | I149: =I141+I142+I143+I144+I145+I146+I147+I148 -> 135 | J149: =J141+J142+J143+J144+J145+J146+J147+J148 -> 1013 | L149: 139
A150: 2 | B150: 3 | C150: Итого за день: | F150: =F140+F149 -> 1465 | G150: =G140+G149 -> 59 | H150: =H140+H149 -> 88 | I150: =I140+I149 -> 215 | J150: =J140+J149 -> 1911 | L150: =L140+L149 -> 244
A151: 2 | B151: 4 | C151: Завтрак | D151: закуска
D152: выпечка
D153: 2 блюдо | E153: Котлета куриная | F153: 100 | G153: 16 | H153: 19 | I153: 11 | J153: 275 | K153: 13078
D154: гарнир | E154: Картофельное пюре | F154: 150 | G154: 3 | H154: 6 | I154: 22 | J154: 152 | K154: 13170
D155: гор.напиток | E155: Напиток из плодов шиповника | F155: 200 | I155: 24 | J155: 102 | K155: 13047
D156: хлеб | E156: Хлеб ржаной | F156: 20 | G156: 1 | I156: 7 | J156: 35 | K156: 13 017
D157: хлеб | E157: Хлеб пшеничный витаминизированный | F157: 20 | G157: 2 | I157: 10 | J157: 47 | K157: 13 016
D158: итого | F158: =F151+F152+F153+F154+F155+F156+F157 -> 490 | G158: =G151+G152+G153+G154+G155+G156+G157 -> 22 | H158: =H151+H152+H153+H154+H155+H156+H157 -> 25 | I158: =I151+I152+I153+I154+I155+I156+I157 -> 74 | J158: =J151+J152+J153+J154+J155+J156+J157 -> 611 | L158: 105
A159: 2 | B159: 4 | C159: Обед | D159: закуска | E159: Кукуруза консервированная | F159: 30 | G159: 3 | H159: 1 | I159: 18 | J159: 98 | K159: 13026
D160: выпечка
D161: 1 блюдо | E161: Рассольник "Ленинградский" с курой и сметаной | F161: 265 | G161: 3 | H161: 8 | I161: 17 | J161: 164 | K161: 13214
D162: 2 блюдо | E162: Кура отварная | F162: 100 | G162: 26 | H162: 26 | J162: 343 | K162: 13041
D163: гарнир | E163: Рис отварной | F163: 150 | G163: 4 | H163: 5 | I163: 40 | J163: 219 | K163: 13161
D164: напиток | E164: Компот из плодов кураги | F164: 200 | G164: 1 | I164: 30 | J164: 126 | K164: 13235
D165: хлеб | E165: Хлеб ржаной | F165: 30 | G165: 2 | I165: 10 | J165: 52 | K165: 13 017
D166: хлеб | E166: Хлеб пшеничный витаминизированный | F166: 30 | G166: 2 | I166: 14 | J166: 71 | K166: 13 016
D167: итого | F167: =F159+F160+F161+F162+F163+F164+F165+F166 -> 805 | G167: =G159+G160+G161+G162+G163+G164+G165+G166 -> 41 | H167: =H159+H160+H161+H162+H163+H164+H165+H166 -> 40 | I167: =I159+I160+I161+I162+I163+I164+I165+I166 -> 129 | J167: =J159+J160+J161+J162+J163+J164+J165+J166 -> 1073 | L167: 139
A168: 2 | B168: 4 | C168: Итого за день: | F168: =F158+F167 -> 1295 | G168: =G158+G167 -> 63 | H168: =H158+H167 -> 65 | I168: =I158+I167 -> 203 | J168: =J158+J167 -> 1684 | L168: =L158+L167 -> 244
A169: 2 | B169: 5 | C169: Завтрак | D169: закуска
D170: выпечка
D171: 2 блюдо | E171: Котлета рыбная | F171: 100 | G171: 16 | H171: 13 | I171: 14 | J171: 230 | K171: 13090
D172: гарнир | E172: Макароны отварные | F172: 150 | G172: 6 | H172: 5 | I172: 36 | J172: 210 | K172: 13158
D173: гор.напиток | E173: Напиток витаминизированый | F173: 200 | I173: 5 | J173: 20 | K173: 13018
D174: хлеб
D175: хлеб | E175: Хлеб пшеничный витаминизированный | F175: 20 | G175: 2 | I175: 10 | J175: 47 | K175: 13 016
D176: итого | F176: =F169+F170+F171+F172+F173+F174+F175 -> 470 | G176: =G169+G170+G171+G172+G173+G174+G175 -> 24 | H176: =H169+H170+H171+H172+H173+H174+H175 -> 18 | I176: =I169+I170+I171+I172+I173+I174+I175 -> 65 | J176: =J169+J170+J171+J172+J173+J174+J175 -> 507 | L176: 105
A177: 2 | B177: 5 | C177: Обед | D177: закуска | E177: Зеленый горошек консервированный | F177: 30 | G177: 1 | I177: 2 | J177: 12 | K177: 1
D178: выпечка
D179: 1 блюдо | E179: Суп из овощей с говядиной и сметаной | F179: 265 | G179: 3 | H179: 8 | I179: 11 | J179: 138 | K179: 13227
D180: 2 блюдо | E180: Запеканка картофельная со свининой и маслом | F180: 155 | G180: 10 | H180: 23 | I180: 25 | J180: 343 | K180: 13 072.03
D181: гарнир
D182: напиток | E182: Кофейный напиток | F182: 200 | G182: 2 | H182: 2 | I182: 24 | J182: 122 | K182: 13043
D183: хлеб | E183: Хлеб ржаной | F183: 30 | G183: 2 | I183: 10 | J183: 52 | K183: 13 017
D184: хлеб | E184: Хлеб пшеничный витаминизированный | F184: 30 | G184: 2 | I184: 14 | J184: 71 | K184: 13 016
D185: итого | F185: =F177+F178+F179+F180+F181+F182+F183+F184 -> 710 | G185: =G177+G178+G179+G180+G181+G182+G183+G184 -> 20 | H185: =H177+H178+H179+H180+H181+H182+H183+H184 -> 33 | I185: =I177+I178+I179+I180+I181+I182+I183+I184 -> 86 | J185: =J177+J178+J179+J180+J181+J182+J183+J184 -> 738 | L185: 139
A186: 2 | B186: 5 | C186: Итого за день: | F186: =F176+F185 -> 1180 | G186: =G176+G185 -> 44 | H186: =H176+H185 -> 51 | I186: =I176+I185 -> 151 | J186: =J176+J185 -> 1245 | L186: =L176+L185 -> 244
C187: Среднее значение за период: | F187: =F24+F42+F60+F78+F96+F114+F132+F150+F168+F186 -> 13313 | G187: =G24+G42+G60+G78+G96+G114+G132+G150+G168+G186 -> 569 | H187: =H24+H42+H60+H78+H96+H114+H132+H150+H168+H186 -> 744 | I187: =I24+I42+I60+I78+I96+I114+I132+I150+I168+I186 -> 1876 | J187: =J24+J42+J60+J78+J96+J114+J132+J150+J168+J186 -> 16501 | L187: =L24+L42+L60+L78+L96+L114+L132+L150+L168+L186 -> 2440
C188: Среднее значение за день: | F188: =F187/10 -> 1331.3 | G188: =G187/10 -> 56.9 | H188: =H187/10 -> 74.4 | I188: =I187/10 -> 187.6 | J188: =J187/10 -> 1650.1 | L188: =L187/10 -> 244
